bitfinex-derivatives/quotes_SOLF0:USTF0_20250527
["timestamp","ask_amount","ask_price","bid_price","bid_amount"]
[1748332159855,0.04323622,175.61,175.57,0.03887951]
[1748332160550,0.04323622,175.61,175.6,5.6931]
[1748332174156,0.04323622,175.61,175.59,5.6934]
[1748332174356,0.04323622,175.61,175.57,0.03887951]
[1748332175257,0.04323622,175.61,175.6,5.6931]
[1748332177462,7.09509124,175.71,175.65,5.6914]
[1748332177758,2.55172964,175.7,175.65,5.6914]
[1748332177959,2.55172964,175.69,175.65,5.6914]
[1748332178162,2.55172964,175.68,175.65,5.6914]
[1748332178356,2.55172964,175.67,175.61,1.9456]
[1748332178555,2.55172964,175.66,175.65,0.03726556]
[1748332179252,2.5519052,175.66,175.65,0.03726556]
[1748332179955,8.2431052,175.66,175.65,0.03726556]
[1748332180161,12.71617711,175.66,175.65,0.03726556]
[1748332180859,7.02601418,175.66,175.65,0.03726556]
[1748332183351,2.55294227,175.66,175.65,0.03726556]
[1748332184361,2.55390206,175.66,175.65,0.03726556]
[1748332184762,2.55390206,175.66,175.6,122.74]
[1748332185058,8.24550206,175.65,175.6,122.74]
[1748332185263,2.55390206,175.64,175.6,122.74]
[1748332185459,2.55390206,175.63,175.6,122.74]
[1748332185764,0.0404578,175.63,175.6,122.7768961]
[1748332186365,0.0404578,175.63,175.61,5.6928]
[1748332188063,0.0404578,175.63,175.62,5.6925]
[1748332188267,2.59471732,175.63,175.62,5.6925]
[1748332188767,0.0404578,175.63,175.62,5.6925]
[1748332204680,2.59664311,175.63,175.62,5.6925]
[1748332204974,5.78e-05,175.63,175.62,5.6925]
[1748332205274,126.5319,175.72,175.68,5.6904]
[1748332205578,2.55551637,175.71,175.69,5.6902]
[1748332205874,5.6905,175.69,175.64,122.6]
[1748332206176,124.5023,175.72,175.66,5.691]
[1748332206177,2.59777402,175.68,175.66,5.691]
[1748332206374,2.55551637,175.67,175.66,5.691]
[1748332207574,0.04225765,175.68,175.67,5.6909]
[1748332207774,2.59741263,175.68,175.67,5.6909]
[1748332208469,2.59681929,175.68,175.67,5.6909]
[1748332210179,0.04225765,175.68,175.67,5.6909]
[1748332210679,5.6889,175.73,175.7,5.6898]
[1748332210878,2.55348123,175.72,175.68,122.58]
[1748332211068,129.67509124,175.76,175.68,122.58]
[1748332211269,8.24190117,175.75,175.68,122.58]
[1748332211481,2.55340117,175.74,175.68,122.58]
[1748332211778,2.58268759,175.73,175.69,0.04020598]
[1748332211977,2.55340117,175.72,175.69,0.04020598]
[1748332212179,0.02928642,175.73,175.69,0.04020598]
[1748332212367,0.02928642,175.73,175.72,5.6893]
[1748332213181,0.02928642,175.73,175.72,128.2693]
[1748332214183,129.67509124,175.8,175.78,5.6873]
[1748332214482,2.54853641,175.79,175.78,5.6873]
[1748332215279,7.01657355,175.79,175.77,5.72438869]
[1748332215480,2.54853641,175.78,175.77,0.03678869]
[1748332216475,2.0446,175.81,175.77,5.72448869]
[1748332216673,2.54400532,175.8,175.77,5.72448869]
[1748332216875,2.54400532,175.79,175.77,0.03678869]
[1748332217082,5.6869,175.8,175.77,0.03678869]
[1748332217381,2.5440124,175.79,175.77,0.03678869]
[1748332217586,2.5440124,175.78,175.77,0.03678869]
[1748332218082,8.2313124,175.78,175.77,0.03678869]
[1748332218886,8.23024543,175.78,175.77,0.03678869]
[1748332220686,8.2291119,175.78,175.77,0.03678869]
[1748332221185,5.688,175.76,175.72,5.689]
[1748332221679,127.60841193,175.8,175.72,5.689]
[1748332221888,5.6879,175.77,175.72,5.689]
[1748332222286,0.03678869,175.76,175.73,0.03772193]
[1748332223881,5.6886,175.74,175.73,0.03772193]
[1748332224081,0.03678869,175.76,175.73,0.03772193]
[1748332224383,2.54116473,175.75,175.73,0.03772193]
[1748332224577,0.03678869,175.76,175.73,0.03772193]
[1748332224984,0.03678869,175.76,175.74,5.6886]
[1748332225285,0.03678869,175.76,175.73,0.03772193]
[1748332226892,0.03678869,175.76,175.73,5.72652193]
[1748332227288,0.03678869,175.76,175.73,0.03772193]
[1748332227489,5.72498869,175.76,175.73,0.03772193]
[1748332227686,0.03678869,175.76,175.73,0.03772193]
[1748332228087,0.03678869,175.76,175.74,5.6886]
[1748332228391,0.03678869,175.76,175.73,0.03772193]
[1748332228693,0.03678869,175.76,175.74,5.6886]
[1748332228992,0.03678869,175.76,175.73,0.03772193]
[1748332230291,0.03678869,175.76,175.73,5.72642193]
[1748332230797,5.72478869,175.76,175.73,5.72642193]
[1748332230988,0.03678869,175.76,175.74,5.6885]
[1748332231189,0.03678869,175.76,175.73,0.03772193]
[1748332231590,0.03678869,175.76,175.73,5.72642193]
[1748332231796,0.03678869,175.76,175.73,0.03772193]
[1748332233594,2.541616,175.75,175.73,0.03772193]
[1748332233897,5.6883,175.75,175.73,0.03772193]
[1748332234394,0.03678869,175.76,175.73,0.03772193]
[1748332235096,0.03678869,175.76,175.73,5.72642193]
[1748332235297,0.03678869,175.76,175.73,0.03772193]
[1748332235698,0.03678869,175.76,175.75,5.6883]
[1748332237299,0.03678869,175.76,175.73,0.03772193]
[1748332238700,5.6886,175.75,175.73,0.03772193]
[1748332239201,0.03678869,175.76,175.73,0.03772193]
[1748332239396,2.54310839,175.75,175.73,0.03772193]
[1748332239601,0.03678869,175.76,175.73,0.03772193]
[1748332239799,0.03678869,175.76,175.73,5.72662193]
[1748332240503,0.03678869,175.76,175.74,5.6886]
[1748332241998,0.03678869,175.76,175.73,5.72662193]
[1748332242404,0.03678869,175.76,175.73,0.03772193]
[1748332243403,0.03678869,175.76,175.75,5.6883]
[1748332244007,128.0656,175.84,175.8,5.6867]
[1748332244301,2.54429678,175.83,175.77,108.06]
[1748332244498,2.54429678,175.82,175.77,108.06]
[1748332244701,2.54429678,175.81,175.77,108.06]
[1748332245001,2.5445655,175.8,175.77,0.04077755]
[1748332245204,127.44841193,175.84,175.77,0.04077755]
[1748332245505,2.54464041,175.83,175.77,0.04077755]
[1748332245706,2.54464041,175.82,175.77,0.04077755]
[1748332245906,7.61305234,175.81,175.77,0.04077755]
[1748332246207,5.6873,175.78,175.77,0.04077755]
[1748332246403,2.54464041,175.78,175.66,553.56]
[1748332246608,2.54464041,175.77,175.67,108.04]
[1748332246906,129.38145818,175.76,175.67,108.04]
[1748332247106,5.6887,175.74,175.69,5.6902]
[1748332247301,2.54464041,175.73,175.68,108.04]
[1748332247502,0.03851406,175.72,175.71,5.6896]
[1748332249303,2.58701934,175.72,175.69,0.04096182]
[1748332249508,2.54850528,175.71,175.69,0.04096182]
[1748332249808,0.03851406,175.72,175.69,0.04096182]
[1748332250106,2.55000115,175.71,175.69,0.04096182]
[1748332250303,0.03851406,175.72,175.69,0.04096182]
[1748332250507,2.55085144,175.71,175.69,0.04096182]
[1748332250803,2.55085144,175.7,175.69,0.04096182]
[1748332250997,0.03851406,175.72,175.69,127.70096182]
[1748332251202,7.09509124,175.79,175.7,2.0559]
[1748332251506,2.54967218,175.78,175.75,5.6881]
[1748332251805,7.09509124,175.79,175.74,127.68]
[1748332252005,2.55051556,175.78,175.74,127.68]
[1748332252195,2.55061339,175.77,175.74,5.7310507]
[1748332252399,2.55150207,175.76,175.74,0.0426507]
[1748332252606,2.55150207,175.75,175.74,0.0426507]
[1748332253004,7.09509124,175.83,175.74,0.0426507]
[1748332253202,2.55145882,175.82,175.74,0.0426507]
[1748332253404,2.55145882,175.81,175.74,0.0426507]
[1748332253707,2.55145882,175.8,175.74,0.0426507]
[1748332253912,2.55145882,175.79,175.74,0.0426507]
[1748332254208,7.09509124,175.83,175.74,140.7226507]
[1748332254405,2.55168551,175.82,175.75,3.9123]
[1748332254604,2.55168551,175.81,175.75,3.9123]
[1748332254805,2.55168551,175.8,175.75,3.9123]
[1748332255005,2.55168551,175.79,175.75,3.9123]
[1748332255205,12.16350317,175.88,175.75,3.95127479]
[1748332255406,2.55178882,175.87,175.8,0.03981123]
[1748332255715,7.6202476,175.86,175.8,0.03981123]
[1748332256005,2.55183567,175.85,175.8,0.03981123]
[1748332256210,2.55183567,175.84,175.8,0.03981123]
[1748332256511,7.6202476,175.83,175.8,0.03981123]
[1748332256712,8.23813567,175.82,175.8,0.03981123]
[1748332256912,2.55183567,175.81,175.8,0.03981123]
[1748332260116,2.55183567,175.81,175.8,5.72651123]
[1748332260821,5.685,175.86,175.81,5.6862]
[1748332261112,2.55109294,175.85,175.81,5.6862]
[1748332261418,2.55109294,175.84,175.81,5.6862]
[1748332261619,2.55109294,175.83,175.81,5.6862]
[1748332261820,2.55109294,175.82,175.81,5.6862]
[1748332262116,157.01311193,175.87,175.82,5.686]
[1748332262317,2.54980446,175.86,175.8,0.03981123]
[1748332262520,2.54980446,175.85,175.83,5.6855]
[1748332262718,7.09509124,175.89,175.82,0.03948803]
[1748332262919,7.09509124,175.89,175.82,2.01068803]
[1748332263516,7.09509124,175.92,175.82,2.01068803]
[1748332263714,7.09509124,175.92,175.85,0.04080517]
[1748332264020,5.06841193,175.91,175.85,0.04080517]
[1748332265018,7.09509124,175.92,175.85,0.04080517]
[1748332266221,5.6844,175.88,175.85,0.04080517]
[1748332266419,5.06841193,175.93,175.85,0.04080517]
[1748332266722,5.06841193,175.87,175.76,108.04]
[1748332266923,5.06841193,175.87,175.77,5.6874]
[1748332267117,5.6858,175.83,175.76,108.04]
[1748332267417,5.06841193,175.87,175.76,108.04]
[1748332267607,0.04129088,175.83,175.8,0.04107323]
[1748332268217,0.04129088,175.83,175.8,5.72777323]
[1748332268517,0.04129088,175.83,175.8,0.04107323]
[1748332268915,5.72709088,175.83,175.8,0.04107323]
[1748332269315,0.04129088,175.83,175.8,0.04107323]
[1748332270415,5.72729088,175.83,175.8,0.04107323]
[1748332270724,0.04129088,175.83,175.8,0.04107323]
[1748332271624,5.72709088,175.83,175.8,0.04107323]
[1748332271826,0.04129088,175.83,175.8,0.04107323]
[1748332272323,0.04129088,175.83,175.8,5.72767323]
[1748332273023,0.04129088,175.83,175.81,5.6863]
[1748332273221,0.04129088,175.83,175.8,0.04107323]
[1748332273723,5.72729088,175.83,175.8,0.04107323]
[1748332273918,0.04129088,175.83,175.8,0.04107323]
[1748332274316,5.6864,175.81,175.8,0.04107323]
[1748332276326,0.04129088,175.83,175.8,0.04107323]
[1748332277126,0.04129088,175.83,175.75,148.1172]
[1748332277927,5.6869,175.8,175.75,148.1172]
[1748332278220,0.0431666,175.79,175.76,0.04116501]
[1748332278425,5.6877,175.77,175.76,0.04116501]
[1748332278627,0.0431666,175.79,175.76,0.04116501]
[1748332279121,5.7304666,175.79,175.76,0.04116501]
[1748332279327,0.0431666,175.79,175.76,0.04116501]
[1748332280420,0.0431666,175.79,175.77,5.6876]
[1748332281316,0.0431666,175.79,175.78,5.6873]
[1748332281828,0.0431666,175.79,175.77,5.6876]
[1748332283229,0.0431666,175.79,175.76,0.04116501]
[1748332283928,0.0431666,175.79,175.76,5.72916501]
[1748332284527,0.0431666,175.79,175.76,0.04116501]
[1748332286029,5.6876,175.78,175.76,0.04116501]
[1748332286229,0.0431666,175.79,175.76,0.04116501]
[1748332286624,0.0431666,175.79,175.7,146.24]
[1748332287327,0.0431666,175.79,175.62,3.6011667]
[1748332287630,4.0488,175.8,175.62,3.6011667]
[1748332287631,0.04042355,175.73,175.7,0.03952043]
[1748332287822,0.03734399,175.73,175.7,0.03952043]
[1748332288029,0.03734399,175.73,175.64,145.78]
[1748332288419,5.6902,175.7,175.65,5.6913]
[1748332288620,1.99244399,175.73,175.62,1.08482768]
[1748332288621,5.06915307,175.68,175.62,1.08482768]
[1748332289026,0.04298979,175.67,175.63,0.03828538]
[1748332289226,5.06915307,175.65,175.62,1.08482768]
[1748332289429,10.76075307,175.65,175.62,1.08482768]
[1748332289928,0.04298979,175.67,175.58,5.6937]
[1748332290132,0.0398362,175.64,175.61,0.03953611]
[1748332290431,145.8598362,175.64,175.61,0.03953611]
[1748332292032,151.5517362,175.64,175.61,0.03953611]
[1748332292233,145.8598362,175.64,175.61,0.03953611]
[1748332293335,0.0398362,175.64,175.61,5.73233611]
[1748332294333,0.0398362,175.64,175.61,0.03953611]
[1748332299032,0.0398362,175.64,175.63,5.6922]
[1748332299636,0.0398362,175.64,175.62,5.6924]
[1748332301439,0.0398362,175.64,175.63,5.6922]
[1748332303540,145.9,175.71,175.69,5.6902]
[1748332303739,145.9,175.71,175.63,254.02]
[1748332303937,145.9,175.75,175.63,254.02]
[1748332304539,0.03883418,175.71,175.67,0.04169409]
[1748332304837,0.03883418,175.71,175.68,5.6903]
[1748332305038,0.03883418,175.71,175.67,0.04169409]
[1748332305242,0.03883418,175.71,175.68,5.6905]
[1748332305544,0.03883418,175.71,175.67,0.04169409]
[1748332306641,5.6901,175.7,175.67,0.04169409]
[1748332308452,5.6906,175.68,175.67,0.04169409]
[1748332308747,5.6906,175.68,175.59,147.9596]
[1748332309142,149.9012,175.7,175.59,147.9596]
[1748332309351,8.11917617,175.68,175.55,108.12]
[1748332309649,0.03988895,175.63,175.6,0.0406243]
[1748332311850,5.73208895,175.63,175.6,0.0406243]
[1748332312647,0.03988895,175.63,175.6,0.0406243]
[1748332313253,0.03988895,175.63,175.6,5.7337243]
[1748332315758,0.03988895,175.63,175.61,5.6928]
[1748332316161,0.03988895,175.63,175.6,0.0406243]
[1748332317760,0.03988895,175.63,175.6,5.7335243]
[1748332318057,5.73218895,175.63,175.6,5.7335243]
[1748332319161,0.03988895,175.63,175.6,5.7335243]
[1748332321661,0.03988895,175.63,175.6,0.0406243]
[1748332322266,0.03988895,175.63,175.62,5.6925]
[1748332322855,491.66,175.69,175.62,5.6925]
[1748332323060,142.8617,175.7,175.59,108.14]
[1748332323260,5.6906,175.68,175.59,108.14]
[1748332323467,142.8617,175.7,175.63,5.692]
[1748332323668,5.6906,175.68,175.59,108.14]
[1748332323967,0.04085154,175.65,175.62,0.0410096]
[1748332324167,0.04085154,175.65,175.64,5.6917]
[1748332327268,0.04085154,175.65,175.62,0.0410096]
[1748332328165,0.04085154,175.65,175.63,5.692]
[1748332329271,0.04085154,175.65,175.64,5.6919]
[1748332334571,0.04085154,175.65,175.63,5.6921]
[1748332334772,0.04085154,175.65,175.62,0.0410096]
[1748332335471,0.04085154,175.65,175.63,5.692]
[1748332335671,0.04085154,175.65,175.62,0.0410096]
[1748332336866,0.04085154,175.65,175.63,5.6919]
[1748332337061,0.04085154,175.65,175.62,0.0410096]
[1748332338974,5.73245154,175.65,175.62,0.0410096]
[1748332339274,0.04085154,175.65,175.62,0.0410096]
[1748332342075,0.04085154,175.65,175.62,5.7334096]
[1748332342274,0.04085154,175.65,175.62,0.0410096]
[1748332345984,5.73265154,175.65,175.62,0.0410096]
[1748332346280,0.04085154,175.65,175.62,0.0410096]
[1748332346582,5.6921,175.64,175.62,0.0410096]
[1748332346982,0.04085154,175.65,175.62,0.0410096]
[1748332347384,140.86085154,175.65,175.62,0.0410096]
[1748332348379,5.6922,175.63,175.62,0.0410096]
[1748332349674,5.6934,175.6,175.55,5.6946]
[1748332350783,0.03620984,175.59,175.56,0.03633699]
[1748332352486,5.6941,175.57,175.56,0.03633699]
[1748332353787,5.6939,175.58,175.56,0.03633699]
[1748332354183,2.01800984,175.59,175.56,0.03633699]
[1748332354691,7.71150984,175.59,175.56,0.03633699]
[1748332354985,0.03620984,175.59,175.56,0.03633699]
[1748332355587,5.72970984,175.59,175.56,0.03633699]
[1748332356285,5.6939,175.58,175.56,0.03633699]
[1748332356787,0.03620984,175.59,175.56,0.03633699]
[1748332357178,5.72990984,175.59,175.56,0.03633699]
[1748332357489,0.03620984,175.59,175.56,0.03633699]
[1748332357894,5.6941,175.57,175.56,0.03633699]
[1748332358189,0.03620984,175.59,175.49,135.62]
[1748332358383,142.59986182,175.6,175.51,5.6961]
[1748332358583,5.6948,175.55,175.49,135.62]
[1748332358991,0.0402421,175.54,175.5,0.04282428]
[1748332359586,0.0402421,175.54,175.51,5.6959]
[1748332359786,0.0402421,175.54,175.5,0.04282428]
[1748332359983,0.0402421,175.54,175.5,5.73912428]
[1748332360188,0.0402421,175.54,175.5,0.04282428]
[1748332360690,0.0402421,175.54,175.53,5.6954]
[1748332361791,5.6937,175.59,175.54,5.6949]
[1748332361991,135.66,175.61,175.51,1.8858]
[1748332362493,141.3529,175.61,175.51,1.8858]
[1748332362987,0.04249581,175.58,175.54,0.04030277]
[1748332363190,0.04249581,175.58,175.54,108.22030277]
[1748332364193,0.04249581,175.58,175.55,5.6947]
[1748332364692,5.6943,175.57,175.54,0.04030277]
[1748332365086,0.04249581,175.58,175.54,0.04030277]
[1748332365491,5.73629581,175.58,175.54,0.04030277]
[1748332366495,0.04249581,175.58,175.54,0.04030277]
[1748332366995,0.04249581,175.58,175.54,5.73510277]
[1748332367188,5.73629581,175.58,175.54,5.73510277]
[1748332367389,0.04249581,175.58,175.54,0.04030277]
[1748332367591,0.04249581,175.58,175.55,5.6947]
[1748332367795,0.04249581,175.58,175.54,0.04030277]
[1748332368095,0.04249581,175.58,175.54,5.73520277]
[1748332368296,0.04249581,175.58,175.54,0.04030277]
[1748332369095,0.04249581,175.58,175.55,5.6948]
[1748332369797,0.04249581,175.58,175.54,0.04030277]
[1748332370091,634.51509124,175.66,175.6,5.693]
[1748332370392,634.51509124,175.66,175.55,137.7066]
[1748332370598,5.6918,175.65,175.55,137.7066]
[1748332370991,0.0423671,175.62,175.58,0.04085502]
[1748332371193,0.0423671,175.62,175.61,5.6927]
[1748332372396,0.0423671,175.62,175.6,5.6931]
[1748332373696,0.0423671,175.62,175.61,5.6928]
[1748332373899,0.0423671,175.62,175.58,0.04085502]
[1748332374395,0.0423671,175.62,175.59,5.6934]
[1748332374698,0.0423671,175.62,175.58,0.04085502]
[1748332374997,0.0423671,175.62,175.6,5.6931]
[1748332375690,0.0423671,175.62,175.58,0.04085502]
[1748332375889,1.904,175.71,175.58,0.04085502]
[1748332376090,135.64,175.71,175.69,5.6901]
[1748332376390,135.64,175.71,175.63,108.16]
[1748332376989,0.04290325,175.69,175.65,0.03946114]
[1748332377194,0.04290325,175.69,175.65,5.73096114]
[1748332377500,0.04290325,175.69,175.65,0.03946114]
[1748332378300,5.73330325,175.69,175.65,0.03946114]
[1748332378804,0.04290325,175.69,175.65,0.03946114]
[1748332380104,5.11476507,175.69,175.65,0.03946114]
[1748332380601,5.6912,175.66,175.65,0.03946114]
[1748332380796,140.43186182,175.66,175.55,629.2666]
[1748332380998,5.693,175.61,175.56,5.6942]
[1748332381300,1.9325,175.65,175.56,5.6942]
[1748332381504,5.693,175.61,175.56,5.6942]
[1748332381805,0.04257165,175.6,175.57,0.03823887]
[1748332382606,0.04257165,175.6,175.57,5.73223887]
[1748332382902,140.43186182,175.68,175.57,0.03823887]
[1748332383096,140.43186182,175.68,175.55,135.36]
[1748332383299,5.6917,175.65,175.6,5.6929]
[1748332383498,5.6917,175.65,175.55,135.36]
[1748332383798,5.6913,175.66,175.62,5.6924]
[1748332384301,0.04350697,175.66,175.62,0.04139496]
[1748332385407,5.73480697,175.66,175.62,5.73369496]
[1748332385709,0.04350697,175.66,175.62,0.04139496]
[1748332385904,5.6918,175.65,175.62,0.04139496]
[1748332386199,0.04350697,175.66,175.62,0.04139496]
[1748332386505,7.09509124,175.74,175.63,108.14]
[1748332386694,7.09509124,175.74,175.64,2.0474]
[1748332387406,0.03777014,175.71,175.67,5.73028079]
[1748332387799,0.03777014,175.71,175.67,0.03968079]
[1748332388899,5.6903,175.69,175.67,0.03968079]
[1748332389300,0.03777014,175.71,175.67,0.03968079]
[1748332389902,5.6905,175.69,175.67,0.03968079]
[1748332390305,5.6906,175.68,175.67,0.03968079]
[1748332390607,0.03777014,175.71,175.67,0.03968079]
[1748332391196,5.6903,175.69,175.67,0.03968079]
[1748332391909,5.72767014,175.71,175.67,0.03968079]
[1748332392109,0.03777014,175.71,175.67,0.03968079]
[1748332395308,5.69,175.7,175.67,0.03968079]
[1748332395610,0.03777014,175.71,175.67,0.03968079]
[1748332395802,0.03777014,175.71,175.67,5.73048079]
[1748332395997,0.03777014,175.71,175.67,0.03968079]
[1748332398305,5.6906,175.68,175.67,0.03968079]
[1748332400413,5.6903,175.69,175.67,0.03968079]
[1748332401017,0.03777014,175.71,175.67,0.03968079]
[1748332402319,5.6902,175.69,175.67,0.03968079]
[1748332402619,0.03777014,175.71,175.67,0.03968079]
[1748332403011,5.6905,175.69,175.67,0.03968079]
[1748332403212,0.03777014,175.71,175.67,0.03968079]
[1748332403617,5.6903,175.69,175.67,0.03968079]
[1748332404413,152.82767014,175.71,175.67,0.03968079]
[1748332404609,147.13777014,175.71,175.67,0.03968079]
[1748332404816,5.6902,175.7,175.67,0.03968079]
[1748332405821,147.13777014,175.71,175.67,0.03968079]
[1748332406312,155.25292362,175.71,175.6,1.9954]
[1748332406517,5.6687,175.7,175.57,147.1]
[1748332406715,8.11515348,175.67,175.54,5.8947]
[1748332406917,5.6932,175.6,175.55,5.6945]
[1748332407116,147.1,175.66,175.54,5.8947]
[1748332407322,0.03659987,175.62,175.58,0.03905877]
[1748332407918,5.6934,175.6,175.58,0.03905877]
[1748332409722,5.6935,175.59,175.58,0.03905877]
[1748332410625,5.6941,175.57,175.5,108.12]
[1748332410826,5.6941,175.57,175.49,147.14]
[1748332411124,5.6941,175.57,175.51,5.6958]
[1748332411315,5.6945,175.56,175.51,5.6958]
[1748332411721,0.04094322,175.55,175.52,0.03704012]
[1748332412523,5.6951,175.54,175.52,0.03704012]
[1748332412718,0.04094322,175.55,175.52,0.03704012]
[1748332415230,0.04094322,175.55,175.45,147.14]
[1748332415825,5.6955,175.53,175.47,5.6972]
[1748332416022,0.04094322,175.55,175.47,5.6972]
[1748332416223,0.04094322,175.55,175.49,0.0412094]
[1748332416423,5.6956,175.53,175.49,0.0412094]
[1748332417327,147.18,175.54,175.49,5.7377094]
[1748332417722,0.04094322,175.55,175.49,5.7377094]
[1748332417723,5.73594322,175.55,175.49,0.0412094]
[1748332417917,152.91594322,175.55,175.49,5.7379094]
[1748332418121,147.22094322,175.55,175.49,5.7379094]
[1748332418422,147.22094322,175.55,175.49,0.0412094]
[1748332419027,5.696,175.52,175.49,0.0412094]
[1748332419227,147.22094322,175.55,175.49,0.0412094]
[1748332419529,5.6959,175.52,175.49,0.0412094]
[1748332420427,147.22094322,175.55,175.49,0.0412094]
[1748332421132,5.6953,175.54,175.49,5.7376094]
[1748332421933,5.6955,175.53,175.49,0.0412094]
[1748332422232,147.22094322,175.55,175.49,0.0412094]
[1748332422431,5.6964,175.5,175.49,0.0412094]
[1748332423227,0.0393234,175.51,175.43,7.6793]
[1748332423732,147.18,175.5,175.43,7.6793]
[1748332423930,5.6973,175.48,175.43,7.6793]
[1748332424132,0.03915719,175.47,175.44,0.03953617]
[1748332425028,5.73665719,175.47,175.44,0.03953617]
[1748332425933,5.6977,175.46,175.44,0.03953617]
[1748332428534,5.698,175.45,175.44,0.03953617]
[1748332428729,0.03915719,175.47,175.44,0.03953617]
[1748332429230,5.698,175.46,175.44,0.03953617]
[1748332430435,5.698,175.45,175.44,0.03953617]
[1748332431732,0.03915719,175.47,175.44,0.03953617]
[1748332432728,5.73665719,175.47,175.44,5.73763617]
[1748332433540,0.03915719,175.47,175.44,5.73763617]
[1748332434137,0.03915719,175.47,175.44,0.03953617]
[1748332437049,0.03915719,175.47,175.44,5.73783617]
[1748332437548,5.73655719,175.47,175.44,0.03953617]
[1748332438646,0.03915719,175.47,175.44,0.03953617]
[1748332438846,0.03915719,175.47,175.46,5.6977]
[1748332439147,0.03915719,175.47,175.44,0.03953617]
[1748332440251,5.6977,175.46,175.44,0.03953617]
[1748332440442,0.03915719,175.47,175.44,0.03953617]
[1748332440844,5.6977,175.46,175.44,0.03953617]
[1748332441051,0.03915719,175.47,175.44,0.03953617]
[1748332441354,5.73655719,175.47,175.44,0.03953617]
[1748332441853,5.6977,175.46,175.44,0.03953617]
[1748332442747,5.698,175.45,175.44,0.03953617]
[1748332443752,0.03915719,175.47,175.44,0.03953617]
[1748332445452,5.698,175.45,175.44,0.03953617]
[1748332450150,5.6996,175.4,175.39,5.935]
[1748332450551,5.08059078,175.46,175.39,3.9906]
[1748332451158,0.0368457,175.44,175.41,0.04102504]
[1748332451552,5.699,175.42,175.41,0.04102504]
[1748332451950,5.7353457,175.44,175.41,0.04102504]
[1748332452156,0.0368457,175.44,175.41,0.04102504]
[1748332452546,0.0368457,175.44,175.41,5.74012504]
[1748332452857,0.0368457,175.44,175.41,0.04102504]
[1748332453457,5.6987,175.43,175.41,0.04102504]
[1748332454150,5.7353457,175.44,175.41,0.04102504]
[1748332454853,5.6987,175.43,175.41,0.04102504]
[1748332455855,5.699,175.42,175.41,0.04102504]
[1748332456857,10.17768255,175.42,175.41,0.04102504]
[1748332459262,5.7013,175.35,175.29,108.26]
[1748332459557,5.08059078,175.39,175.29,112.0388]
[1748332459756,5.08059078,175.39,175.32,5.7021]
[1748332459951,5.7008,175.37,175.32,5.7021]
[1748332460149,0.04065065,175.36,175.33,0.03880867]
[1748332460355,0.04065065,175.36,175.33,5.74050867]
[1748332460657,0.04065065,175.36,175.33,0.03880867]
[1748332461752,0.04065065,175.36,175.33,5.74070867]
[1748332462260,5.74165065,175.36,175.33,0.03880867]
[1748332462664,0.04065065,175.36,175.33,0.03880867]
[1748332465366,5.7015,175.35,175.33,0.03880867]
[1748332465563,5.7016,175.34,175.33,0.03880867]
[1748332465761,0.04065065,175.36,175.33,0.03880867]
[1748332466158,5.7013,175.35,175.33,0.03880867]
[1748332466651,0.04065065,175.36,175.34,5.7016]
[1748332467065,0.04065065,175.36,175.33,0.03880867]
[1748332467265,0.04065065,175.36,175.34,5.7016]
[1748332468468,0.04065065,175.36,175.33,0.03880867]
[1748332468967,5.7016,175.34,175.33,0.03880867]
[1748332473875,5.7014,175.35,175.33,0.03880867]
[1748332474175,0.04065065,175.36,175.33,0.03880867]
[1748332475081,5.7014,175.35,175.33,0.03880867]
[1748332475379,0.04065065,175.36,175.33,0.03880867]
[1748332475785,5.7012,175.35,175.33,0.03880867]
[1748332477776,5.7015,175.34,175.33,0.03880867]
[1748332480176,0.04065065,175.36,175.33,0.03880867]
[1748332480177,5.7012,175.35,175.33,0.03880867]
[1748332480382,0.04065065,175.36,175.33,0.03880867]
[1748332480789,0.04065065,175.36,175.34,5.7015]
[1748332483076,5.74155065,175.36,175.34,5.7015]
[1748332483888,0.04065065,175.36,175.34,5.7015]
[1748332484091,0.04065065,175.36,175.33,0.03880867]
[1748332484582,5.74155065,175.36,175.33,0.03880867]
[1748332484994,5.74155065,175.36,175.34,5.7013]
[1748332485491,0.04065065,175.36,175.35,5.7012]
[1748332493893,0.04065065,175.36,175.34,5.7014]
[1748332494395,0.04065065,175.36,175.33,0.03880867]
[1748332495393,5.74155065,175.36,175.33,5.74050867]
[1748332496391,5.7013,175.35,175.33,0.03880867]
[1748332496794,0.04065065,175.36,175.33,0.03880867]
[1748332496998,5.7015,175.35,175.33,0.03880867]
[1748332500291,5.7016,175.34,175.33,0.03880867]
[1748332501395,10.19952866,175.34,175.33,0.03880867]
[1748332503794,4.49792866,175.34,175.33,0.03880867]